Cogmind - Beta 15 @@@ ROGUE MODE // 2025.08.10 @ 18:29:33 Player: Dadrick Result: Destroyed by Y-54 Guardian with Flak Gun Performance ------------- Evolutions (4) 2000 Regions Visited (7) 1400 Robots Destroyed (286) 1430 Value Destroyed (8104) 8104 Prototype IDs (21) 420 Alien Tech Used (0) 0 Bonus (892) 892 TOTAL SCORE: 14246 Bonus ------- High Alert Combat Kills 1272 Follower Combat Kills 70 Friendly Fire -450 Cogmind --------- Core Integrity 0/850 Matter 9/300 Energy 99/100 System Corruption 12% Temperature Cool (6) Movement Core (50) Location -6/Extension Parts ------- > --- POWER (2) -------- (None) > --- PROPULSION (4) --- (None) > --- UTILITY (6) ------ Melee Analysis Suite > --- WEAPON (3) ------- (None) > --- INVENTORY (5) ---- Light Fission Core Armored Leg Improved Sensor Array Heavy Laser Peak State ------------ > --- POWER ------------ Angular Momentum Engine F-cell Engine > --- PROPULSION ------- Armored Leg Armored Leg Armored Leg Armored Leg > --- UTILITY ---------- Huge Storage Unit Improved Signal Interpreter Weapon Cycler Reaction Control System Reaction Control System Force Field > --- WEAPON ----------- Coil Gun Coil Gun Powered Hammer > --- INVENTORY -------- Light Fission Core Carbon-fiber Leg Carbon-fiber Leg Armored Leg Armored Huge Wheel Improved Heat Sink High-capacity Storage Unit Structural Scanner Improved Sensor Array Improved Sensor Array Melee Analysis Suite Advanced ECM Suite High-powered Tractor Beam Precision Shock Rifle Precision Shock Rifle Precision Shock Rifle Heavy Laser Heavy Laser Proton Cannon Heavy Ion Cannon Gauss Rifle Assault Cannon Mini Grenade Launcher Remote Datajack [Rating: 73] Favorites ----------- Power Light Nuclear Core Engine Cooled Ion Engine Power Core Light Nuclear Core Propulsion Light Treads Treads Light Treads Leg Armored Leg Wheel Armored Huge Wheel Flight Unit VTOL Module Utility Improved Signal Interpreter Device Structural Scanner Storage High-capacity Storage Unit Processor Improved Signal Interpreter Protection Improved Light Armor Plating Weapon Assault Cannon Energy Gun Heavy Particle Gun Energy Cannon Light EM Pulse Cannon Ballistic Gun Coil Gun Ballistic Cannon Assault Cannon Launcher Shock Bomb Launcher Impact Weapon Flail Build | -11 -10 -9 -8 -8 -7 -6 -6 ------- Run | Yrd Mat Mat Mat Sto Fac Fac Ext Slots Evolved 8 | . . 2 2 . 2 2 . Power 1 | . . . . . 1 . . Propulsion 2 | . . 1 . . . 1 . Utility 4 | . . . 2 . 1 1 . Weapon 1 | . . 1 . . . . . Parts Attached 162 | 8 11 27 12 27 50 26 1 Power 27 | 2 2 2 2 4 9 6 . Engine 16 | 2 1 2 1 4 2 4 . Core 11 | . 1 . 1 . 7 2 . Reactor . | . . . . . . . . Propulsion 43 | 2 3 9 2 12 9 6 . Treads 27 | 2 . 6 1 12 6 . . Leg 9 | . 2 2 . . . 5 . Wheel 4 | . . . . . 3 1 . Hover . | . . . . . . . . Flight 3 | . 1 1 1 . . . . Utility 46 | 2 3 5 6 3 16 10 1 Device 19 | 1 . 2 4 1 5 6 . Storage 5 | 1 2 2 . . . . . Processor 5 | . . . 1 . 2 1 1 Hackware . | . . . . . . . . Protection 17 | . 1 1 1 2 9 3 . Artifact . | . . . . . . . . Weapon 46 | 2 3 11 2 8 16 4 . Energy Gun 21 | 1 3 4 . 5 7 1 . Energy Cannon 3 | . . . . . 3 . . Ballistic Gun 7 | 1 . 2 . . 1 3 . Ballistic Cannon 8 | . . 2 1 2 3 . . Launcher 4 | . . 2 . 1 1 . . Special Weapon . | . . . . . . . . Impact Weapon 3 | . . 1 1 . 1 . . Slashing Weapon . | . . . . . . . . Piercing Weapon . | . . . . . . . . Special Melee Weapon . | . . . . . . . . Unidentified Prototypes 10 | . 1 2 1 4 . 2 . Corrupted Parts 1 | . . . . . 1 . . System Corruption 1 | . . . . . 1 . . Parts Lost 72 | . . 8 . 8 31 25 . Power 15 | . . 1 . 2 6 6 . Propulsion 17 | . . 2 . 2 6 7 . Utility 15 | . . 1 . 1 8 5 . Weapon 25 | . . 4 . 3 11 7 . Highest Loss Streak 8 | . . 2 . 3 6 8 . To Critical Strikes . | . . . . . . . . Average Backups 16 | 2 9 11 18 19 16 22 3 Power 1 | . 1 1 1 1 . 1 1 Propulsion 2 | 1 1 2 3 3 3 2 1 Utility 6 | . 2 3 4 8 7 8 1 Weapon 6 | . 3 3 8 7 5 9 . Tool/Special . | . . . . . . . . Unused Backups 24 | . 2 . . 8 1 11 2 Power 4 | . . . . 2 . 1 1 Propulsion 6 | . . . . 3 1 1 1 Utility 3 | . . . . . . 3 . Weapon 10 | . 2 . . 3 . 5 . Tool/Special 1 | . . . . . . 1 . Average Slot Usage (%) 94 | . 99 97 99 97 90 91 8 Engine 6 | . 9 10 1 7 4 7 . Core 4 | . 4 . 7 1 7 3 . Treads 16 | . 4 28 26 26 10 5 . Leg 5 | . 23 4 . . . 12 . Wheel 1 | . . . . . 5 3 . Device 13 | . 12 8 11 13 13 17 . Storage 8 | . 14 11 9 9 7 5 . Processor 6 | . . . 8 9 7 7 6 Protection 4 | . 1 2 5 4 6 6 . Energy Gun 8 | . 22 11 . 10 9 . 2 Ballistic Gun 2 | . 5 3 . . 1 6 . Ballistic Cannon 6 | . . 8 17 8 2 6 . Impact Weapon 5 | . . 4 8 5 5 4 . Peak Build Rating 73 | 7 12 22 31 32 51 73 8 Average Rating 32 | 5 9 18 29 27 39 56 5 On Entrance 17 | . 7 12 21 30 31 36 2 Naked Turns 30 | . . . . . . 30 . Heaviest Build 128 | 14 22 63 65 67 120 128 4 Greatest Support 69 | 40 40 69 69 66 63 64 3 Greatest Overweight (x) 4 | 1 1 . 1 2 4 4 1 Average Overweight (x) 1 | . . . . . 2 2 . Largest Inventory Capacity 25 | 8 25 20 20 20 25 25 5 Average Capacity 19 | 6 9 14 20 20 21 24 5 Most Carried 25 | 5 10 16 20 20 23 25 4 Average Carried 17 | 2 9 11 18 19 17 23 3 Final Capacity 25 | 8 10 20 20 20 25 5 5 Final Carried 21 | 5 10 15 20 20 21 5 4 Class Distribution -------------------- 33% | Mutant 18% | Scavenger-Mutant 14% | Scavenger-Assassin 13% | Assassin 6% | Gunner 4% | Skirmisher 4% | Scavenger-Tank Dominant Class ---------------- Scavenger-Mutant | -10/Materials Mutant | -9/Materials Mutant | -8/Materials Scavenger-Mutant | -8/Storage Scavenger-Assassin | -7/Factory Scavenger-Assassin | -6/Factory Mutant | -6/Extension Resources | -11 -10 -9 -8 -8 -7 -6 -6 ----------- Run | Yrd Mat Mat Mat Sto Fac Fac Ext Matter Collected 6531 | 284 210 589 673 1439 1872 1464 . Remotely 695 | . . . . . . 695 . Salvage Created 10731 | 132 593 1646 357 2336 3718 1949 . Parts 536 | 9 40 99 28 123 161 76 . Haulers Intercepted 17 | . 2 6 2 5 1 1 . Recyclers Shooed 8 | 1 . . 1 1 3 2 . Parts Field Recycled . | . . . . . . . . Retrieved Matter . | . . . . . . . . Parts Self-Destructed . | . . . . . . . . Prevented . | . . . . . . . . Kills | -11 -10 -9 -8 -8 -7 -6 -6 ------- Run | Yrd Mat Mat Mat Sto Fac Fac Ext Combat Hostiles Destroyed 182 | . 13 36 13 40 55 25 . Melee 3 | . . 1 . . 2 . . Guns 62 | . 12 14 . 7 17 12 . Cannons 59 | . . 6 13 18 13 9 . AOE 49 | . 1 13 . 15 18 2 . Classes Destroyed 15 | 3 4 3 . 3 2 . . Worker 24 | 1 . . 2 3 11 7 . Builder 19 | . . 4 4 2 6 3 . Tunneler 5 | 2 . 1 1 . 1 . . Hauler 17 | . 2 6 2 5 1 1 . Recycler 20 | 1 . 2 . 3 8 6 . Mechanic 5 | . . . . 2 2 1 . Operator 2 | . . . . 1 1 . . Watcher 10 | . 3 2 1 . 1 3 . Swarmer 46 | . 6 13 9 6 3 9 . Grunt 81 | . 7 15 3 18 29 9 . Brawler 5 | . . 1 . 3 1 . . Duelist 5 | . . . . 2 2 1 . Sentry 26 | . . 7 1 11 7 . . Hunter 5 | . . . . . 4 1 . Programmer 14 | . . . . . 9 5 . Thug 2 | . . . . 2 . . . Best Kill Streak 14 | 2 3 9 4 9 14 9 . Combat Bots Only 8 | . 3 6 4 7 8 6 . Max Kills in Single Turn 5 | 1 2 5 2 4 5 2 . Gunslinging 1 | . 1 . . . . . . Exploded 4 | . 1 4 . 2 3 1 . Melee 1 | . . 1 . . 1 . . Uniques/NPCs Destroyed . | . . . . . . . . Combat | -11 -10 -9 -8 -8 -7 -6 -6 -------- Run | Yrd Mat Mat Mat Sto Fac Fac Ext Hostile Shots Fired 1770 | . 73 183 71 223 787 407 26 Missed 583 | . 17 57 19 60 288 130 12 Hits 1187 | . 56 126 52 163 499 277 14 Melee 17 | . . . . . 14 3 . Projectile 1170 | . 56 126 52 163 485 274 14 AOE 1 | . . . . . 1 . . Critical Strikes 42 | . . 5 . 6 16 15 . Actively Blocked 2 | . . . . . . 2 . Part Disruptions 1 | . . . . . 1 . . Damage Taken 15196 | . 658 1492 399 2088 6254 4175 130 Core 2154 | . 108 277 40 245 629 725 130 Absorbed by Shields 1280 | . . . 104 264 506 406 . Redirected to Shielding 108 | . 14 . . . . 94 . Core Remaining (%) 48 | 100 56 30 . 48 10 . . Volleys Fired 644 | 16 51 96 44 119 211 107 . Largest 3 | 2 2 3 2 3 3 3 . Hottest 207 | 70 90 135 74 165 207 127 . Shots Fired 1226 | 17 102 175 87 215 396 234 . Gun 645 | 17 102 118 . 52 223 133 . Cannon 508 | . . 43 87 141 138 99 . Launcher 73 | . . 14 . 22 35 2 . Special . | . . . . . . . . Kinetic 682 | 4 24 51 87 141 153 222 . Thermal 278 | 13 24 7 . 52 172 10 . Explosive 15 | . . 14 . 1 . . . Electromagnetic 251 | . 54 103 . 21 71 2 . Robot Hit Streak 15 | 6 7 10 11 15 15 8 . Robot Miss Streak 11 | 3 11 5 10 6 6 10 . Penetration Max 1 | . . . . . 1 1 . Secondary Targets 8 | . 3 1 . 1 3 . . Max Gunslinging Chain 1 | . 1 1 . 1 1 . . Shots Hit Robots 750 | 9 48 109 55 126 251 152 . Core Hits 392 | 4 24 59 22 90 135 58 . Critical Kills 7 | . . . 1 1 . 5 . Critical Parts Destroyed 10 | . . 1 . . 5 4 . Critical Strikes 37 | 1 . 8 2 4 11 11 . Burn 8 | 1 . 2 . . 5 . . Destroy 7 | . . . . . 2 5 . Blast 6 | . . . 1 3 . 2 . Corrupt 5 | . . 5 . . . . . Smash 11 | . . 1 1 1 4 4 . Melee Attacks 102 | . . 11 14 13 26 38 . Impact 102 | . . 11 14 13 26 38 . Slashing . | . . . . . . . . Piercing . | . . . . . . . . Sneak Attacks 31 | . . 2 8 3 7 11 . Combat Hostiles . | . . . . . . . . Follow-up Attacks . | . . . . . . . . Damage Inflicted 25435 | 129 781 3272 1961 5325 8635 5332 . Guns 7337 | 123 719 1182 . 612 2925 1776 . Cannons 7330 | . . 515 1328 2131 2013 1343 . Explosions 6947 | . 62 1231 . 2270 2907 477 . Melee 3731 | . . 339 633 288 735 1736 . Ramming 90 | 6 . 5 . 24 55 . . Kinetic 9396 | 10 100 577 1328 2131 2170 3080 . Thermal 4862 | 113 225 202 . 1169 2940 213 . Explosive 1424 | . . 1115 . 236 73 . . Electromagnetic 5932 | . 456 1034 . 1477 2662 303 . Impact 3731 | . . 339 633 288 735 1736 . Slashing . | . . . . . . . . Piercing . | . . . . . . . . Highest Corruption 19 | . 4 . 1 1 19 12 12 Average Corruption 5 | . 3 . 1 1 14 4 12 Corruption Purged . | . . . . . . . . Corruption Blocked . | . . . . . . . . Effects 213 | . 23 . 2 27 116 44 1 Message Errors 48 | . 8 . . 5 21 14 . Matter Fused 45 | . 4 . . 5 25 11 . Heat Flow Errors 26 | . 3 . . 5 12 5 1 Energy Discharges 23 | . 2 . . 4 11 6 . Parts Rejected 9 | . 1 . . 1 5 2 . Parts Fused 1 | . . . . . 1 . . Data Loss (minor) 20 | . 3 . 2 5 8 2 . Data Loss (major) 12 | . 1 . . 2 7 2 . Misfires 10 | . . . . . 9 1 . Alerts 2 | . 1 . . . 1 . . Misdirections 5 | . . . . . 5 . . Weapon Failures 12 | . . . . . 11 1 . Overload Shots . | . . . . . . . . Overflow Damage 1884 | . . 163 231 148 543 799 . Projectiles 231 | . . 19 44 15 93 60 . Explosions 90 | . . 20 . 5 55 10 . Melee 1563 | . . 124 187 128 395 729 . Knockbacks 86 | . . 4 9 27 16 30 . Impact 20 | . . 1 2 2 5 10 . Kinetic 61 | . . 2 6 24 10 19 . Secondary 5 | . . 1 1 1 1 1 . Self-Inflicted Damage 404 | . . 32 . 54 292 26 . Shots 18 | . . 2 . 5 9 2 . Rammed 14 | . . 1 . 6 7 . . Targets Rammed 15 | 1 . 1 . 6 7 . . Kicked . | . . . . . . . . Crushed 1 | 1 . . . . . . . Highest Temperature 375 | 30 375 243 74 337 342 218 175 Average Temperature 77 | 18 92 81 29 66 101 49 101 Received Heat Transfer 4473 | . 318 513 63 1020 1546 1007 6 Effects 8 | . 2 . . . 6 . . Interference 8 | . 2 . . . 6 . . Siege Activations . | . . . . . . . . Martial Activations . | . . . . . . . . Shielding Activations . | . . . . . . . . Robots Disrupted 1 | . . . . . 1 . . Combat Hostiles 1 | . . . . . 1 . . Robots Corrupted 21 | . . 3 1 . 11 6 . Combat Hostiles 8 | . . 2 . . 4 2 . Parts Fried 47 | . 2 7 5 2 16 15 . Impact Corruptions 52 | . . 4 6 3 17 22 . Robots Melted 1 | . . . . . 1 . . Combat Hostiles 1 | . . . . . 1 . . Parts Melted 20 | 1 . . . 2 17 . . Heat Transferred 9010 | 407 581 483 . 1797 5418 324 . Parts Sabotaged . | . . . . . . . . Parts Stolen . | . . . . . . . . Parts Stripped . | . . . . . . . . Power Chain Reactions 25 | . 1 2 . 6 14 2 . Alert | -11 -10 -9 -8 -8 -7 -6 -6 ------- Run | Yrd Mat Mat Mat Sto Fac Fac Ext Maximum Alert Level 4 | . . 2 . 3 4 2 1 Low Security (%) 37 | 100 100 45 100 36 4 . . Level 1 23 | . . 41 . 26 26 27 100 Level 2 30 | . . 13 . 26 40 72 . Level 3 7 | . . . . 10 22 . . Level 4 1 | . . . . . 6 . . Level 5 . | . . . . . . . . High Security . | . . . . . . . . Max Security . | . . . . . . . . Peak Influence 1180 | 5 165 455 198 840 1180 604 259 Initial 578 | . . 46 179 63 376 578 259 Average 344 | . 69 224 105 330 616 444 250 Influence Increases 6336 | 20 445 1216 522 1431 1819 883 . Destroy 0b10 Robot/C 3680 | . 260 720 260 840 1100 500 . Destroy 0b10 Robot/NC 510 | 20 25 75 50 80 155 105 . Destroy Leader 944 | . 70 196 56 210 294 118 . Allied During Kill 20 | . . . . 20 . . . Successful Hack 134 | . 30 18 11 28 27 20 . Select Force Hacks 60 | . 30 . 30 . . . . Disable Machine 420 | . 30 45 60 120 150 15 . Destroy Structure 343 | . . 102 55 88 78 20 . Lose Combat Pursuer 225 | . . 60 . 45 15 105 . Influence Decreases 6097 | 20 335 901 797 753 1467 1532 292 Entered New Map 1723 | . . 64 246 87 452 602 272 Time Decay 3410 | 20 335 607 467 576 705 680 20 Lost Part 720 | . . 80 . 80 310 250 . Lost Ally 10 | . . . . 10 . . . Purge Threat 234 | . . 150 84 . . . . Squads Dispatched 51 | . 3 6 3 10 20 9 . Investigation 6 | . 2 . 1 2 . 1 . Extermination 11 | . . . . . 6 5 . Reinforcement 19 | . 1 6 . 2 7 3 . Assault 7 | . . . . 4 3 . . Garrison 8 | . . . 2 2 4 . . Intercept . | . . . . . . . . Searches Triggered . | . . . . . . . . Construction Impeded 7 | . . 2 . . 5 . . Haulers Reinforced 2 | . . . . . 1 1 . Active Scanning Responses . | . . . . . . . . Cargo Convoy Interrupts . | . . . . . . . . Stealth | -11 -10 -9 -8 -8 -7 -6 -6 --------- Run | Yrd Mat Mat Mat Sto Fac Fac Ext Distress Signals 27 | . 1 6 3 7 7 2 1 Communications Jammed . | . . . . . . . . Distress Signals . | . . . . . . . . Times Spotted 284 | . 25 54 18 61 75 45 6 Peak Tracking Total 9 | . 3 6 4 9 7 5 6 Tactical Retreats 12 | . . 2 . 3 1 6 . Traps | -11 -10 -9 -8 -8 -7 -6 -6 ------- Run | Yrd Mat Mat Mat Sto Fac Fac Ext Traps Triggered 16 | . 4 . 2 2 3 5 . Indirectly . | . . . . . . . . Trap Hack Attempts . | . . . . . . . . Triggered . | . . . . . . . . Disarmed . | . . . . . . . . Reprogrammed . | . . . . . . . . Reused . | . . . . . . . . Traps Extracted . | . . . . . . . . Installed . | . . . . . . . . Triggered . | . . . . . . . . Machines | -11 -10 -9 -8 -8 -7 -6 -6 ---------- Run | Yrd Mat Mat Mat Sto Fac Fac Ext Machines Disabled 28 | . 2 3 4 8 10 1 . Max in Single Turn 3 | . 1 1 3 1 1 1 . Garrison Access 2 | . . . 1 1 . . . Machines Repaired . | . . . . . . . . Machines Dismantled . | . . . . . . . . Machines Sabotaged . | . . . . . . . . Overloaded Fab Kills . | . . . . . . . . Hacking | -11 -10 -9 -8 -8 -7 -6 -6 --------- Run | Yrd Mat Mat Mat Sto Fac Fac Ext Machines Accessed 43 | . 9 6 7 10 4 7 . Terminals 36 | . 7 6 4 9 4 6 . Fabricators . | . . . . . . . . Repair Stations . | . . . . . . . . Recycling Units 3 | . 2 . 1 . . . . Scanalyzers 1 | . . . 1 . . . . Garrison Access 3 | . . . 1 1 . 1 . Total Hacks 111 | . 30 18 17 23 9 14 . Successful 58 | . 19 12 13 8 3 3 . Failed 53 | . 11 6 4 15 6 11 . Catastrophic 11 | . . . . 5 2 4 . Database Lockouts . | . . . . . . . . Manual 49 | . 18 12 3 8 4 4 . Terminals 95 | . 25 18 8 22 9 13 . Fabricators . | . . . . . . . . Repair Stations . | . . . . . . . . Recycling Units 6 | . 5 . 1 . . . . Scanalyzers 7 | . . . 7 . . . . Garrison Access 3 | . . . 1 1 . 1 . Terminal Hacks 27 | . 6 5 5 6 3 2 . Record 1 | . 1 . . . . . . Prototype ID Bank 6 | . 1 . 3 1 1 . . Open Door 3 | . . . . 2 . 1 . Terminal Index 4 | . 1 1 1 1 . . . Alert Level 3 | . 1 1 . . 1 . . Unreport Threat 2 | . . 1 1 . . . . Locate Traps 4 | . . 1 . 2 1 . . Hauler Manifests 2 | . . 1 . . . 1 . Registered Components 1 | . 1 . . . . . . Zone Layout 1 | . 1 . . . . . . Fabricator Hacks . | . . . . . . . . Repair Station Hacks . | . . . . . . . . Recycling Unit Hacks 3 | . 3 . . . . . . Report Inventory 2 | . 2 . . . . . . Retrieve Components 1 | . 1 . . . . . . Scanalyzer 6 | . . . 6 . . . . Insert Component 3 | . . . 3 . . . . Analyze 3 | . . . 3 . . . . Garrison Access Hacks 2 | . . . 1 1 . . . Seal Access 2 | . . . 1 1 . . . Unauthorized Hacks 19 | . 9 7 1 1 . 1 . Terminals 17 | . 8 7 . 1 . 1 . Assimilate 1 | . . . . . . 1 . Botnet 6 | . 3 2 . 1 . . . Skim 10 | . 5 5 . . . . . Fabricators . | . . . . . . . . Repair Stations . | . . . . . . . . Recycling Units 2 | . 1 . 1 . . . . Tunnel 2 | . 1 . 1 . . . . Scanalyzers . | . . . . . . . . Garrison Access . | . . . . . . . . Data Cores Recovered . | . . . . . . . . Used . | . . . . . . . . Hacking Detections 38 | . 7 6 5 9 4 7 . Full Trace Events 4 | . . . 1 2 . 1 . Feedback Events . | . . . . . . . . Feedback Blocked . | . . . . . . . . Robot Schematics Acquired . | . . . . . . . . Robots Built . | . . . . . . . . Authchips . | . . . . . . . . Time . | . . . . . . . . Total Robot Build Rating . | . . . . . . . . Part Schematics Acquired 3 | . . . 3 . . . . Parts Built . | . . . . . . . . Authchips . | . . . . . . . . Time . | . . . . . . . . Total Part Build Rating . | . . . . . . . . Parts Repaired . | . . . . . . . . Time . | . . . . . . . . Parts Recycled . | . . . . . . . . Recycled Matter . | . . . . . . . . Retrieved Matter . | . . . . . . . . Retrieved Components 2 | . 2 . . . . . . Parts Scanalyzed 3 | . . . 3 . . . . Part Schematics Acquired 3 | . . . 3 . . . . Parts Damaged 1 | . . . 1 . . . . Bothacking | -11 -10 -9 -8 -8 -7 -6 -6 ------------ Run | Yrd Mat Mat Mat Sto Fac Fac Ext Used RIF Installer . | . . . . . . . . Robots Hacked . | . . . . . . . . Non-combat . | . . . . . . . . Combat . | . . . . . . . . Robot Hacks Applied . | . . . . . . . . Relay Couplers Released 10 | . . . . . 6 4 . Programmers 10 | . . . . . 6 4 . Fabnet Peak Effective % . | . . . . . . . . Robots Rewired . | . . . . . . . . Allies Hacked . | . . . . . . . . Hacks Repelled . | . . . . . . . . Allies | -11 -10 -9 -8 -8 -7 -6 -6 -------- Run | Yrd Mat Mat Mat Sto Fac Fac Ext Total Allies 2 | . . . . 2 . . . Largest Group 2 | . . . . 2 . . . Highest-Rated Group 62 | . . . . 62 . . . Highest-Rated Ally 31 | . . . . 31 . . . Total Orders 4 | . . . . 2 2 . . EXPLORE 4 | . . . . 2 2 . . Ally Attacks 13 | . . . . 13 . . . Total Damage 207 | . . . . 207 . . . Kills 2 | . . . . 2 . . . Allies Corrupted . | . . . . . . . . Allies Melted . | . . . . . . . . Intel | -11 -10 -9 -8 -8 -7 -6 -6 ------- Run | Yrd Mat Mat Mat Sto Fac Fac Ext Active Infowar (turns) 9924 | 204 1283 528 923 2390 2170 2426 . Sensors 6114 | . . . 922 1337 1605 2250 . Structural 6299 | . . . 224 1970 1844 2261 . Seismic 2015 | 204 1283 528 . . . . . Machine Analysis 274 | . . . . . 274 . . Robot Analysis Total . | . . . . . . . . Derelict Logs Recovered . | . . . . . . . . Drone Launches 4 | . . . . 2 2 . . Drone Recoveries 2 | . . . . 1 1 . . Exploration | -11 -10 -9 -8 -8 -7 -6 -6 ------------- Run | Yrd Mat Mat Mat Sto Fac Fac Ext Turns Passed 13818 | 245 1460 1969 1398 2909 3095 2690 52 Spaces Moved 5951 | 142 697 914 682 861 1370 1209 76 Core 175 | 35 . . . . . 64 76 Treads 2789 | 107 97 775 682 861 252 15 . Legs 1222 | . 600 139 . . . 483 . Wheels 1765 | . . . . . 1118 647 . Hover . | . . . . . . . . Flight . | . . . . . . . . Fastest Speed 50 | 50 120 120 160 160 130 50 50 Average Speed 162 | 133 164 153 161 192 154 167 64 Slowest Speed 400 | 160 190 160 240 320 400 330 100 Overloaded Moves . | . . . . . . . . Propulsion Burnouts . | . . . . . . . . Robots Hopped . | . . . . . . . . Potential Cave-ins . | . . . . . . . . Cave-ins Triggered . | . . . . . . . . Exploration Rate (%) 45 | 7 84 71 39 90 40 23 12 Regions Visited 7 Branch Regions 2 Pre-discovered Areas 2 | . 1 . 1 . . . . Known Exits Taken 4 | . . 1 1 1 1 . . Unknown Exits Taken 3 | 1 1 . . . . 1 . Scrap Searched . | . . . . . . . . Spaces Dug 26 | . . 4 5 4 7 6 . Terrain Destroyed 358 | . . 112 62 84 84 16 . Melee 23 | . . 1 5 4 7 6 . Projectile 56 | . . 13 15 22 2 4 . AOE 279 | . . 98 42 58 75 6 . Terrain Rammed . | . . . . . . . . Walls Destroyed . | . . . . . . . . Machines Disabled . | . . . . . . . . Actions | -11 -10 -9 -8 -8 -7 -6 -6 --------- Run | Yrd Mat Mat Mat Sto Fac Fac Ext Total 8690 | 177 915 1284 864 1872 1900 1599 79 Wait 1399 | 7 123 190 95 764 92 128 . Move 5944 | 141 696 913 681 860 1369 1208 76 Hop . | . . . . . . . . Pick Up 145 | 4 12 19 4 24 53 29 . Fast Attach 51 | 7 7 9 8 12 1 7 . Attach 99 | . 3 11 1 9 51 22 2 Detach 10 | . 1 1 . 1 5 1 1 Swap 170 | 1 6 17 12 35 63 36 . Drop 90 | . 16 16 5 28 18 7 . Fire 644 | 16 51 96 44 119 211 107 . Melee 102 | . . 11 14 13 26 38 . Ram 4 | . . . . . 4 . . Kick . | . . . . . . . . Crush 11 | 1 . 1 . 6 3 . . Escape Stasis 20 | . . . . . 4 16 . Rewire 1 | . . . . 1 . . . Trap . | . . . . . . . . Miscellaneous . | . . . . . . . . Route ------- -11/Scrapyard -10/Materials (discovered 4 exits: *Mat x2 / [*Min x2]) -9/Materials (discovered 5 exits: *Mat x3 / [*Min x2]) -8/Materials (discovered 3 exits: Fac / *Sto x2) -8/Storage (discovered 2 exits: *Fac / Rec) -7/Factory (discovered 2 exits: *Fac x2) -6/Factory (discovered 3 exits: *Fac x2 / [*Ext]) -6/Extension History --------- Turn | Location | Event 18 | -11/Scrapyard | Discovered new exit (range 12) 246 | -11/Scrapyard | Entered Materials 304 | -10/Materials | Build established: Mutant 553 | -10/Materials | Discovered new exit (range 16) 619 | -10/Materials | Discovered new exit (range 17) 932 | -10/Materials | Discovered new exit (range 9) 1011 | -10/Materials | Build established: Scavenger-Mutant 1080 | -10/Materials | Discovered new exit (range 7) 1575 | -10/Materials | Learned location of 2 exits from Mines 1605 | -10/Materials | Learned location of 2 exits from Subcaves 1624 | -10/Materials | Learned Storage stockpile data 1632 | -10/Materials | Learned Storage security intel 1633 | -10/Materials | Learned 2 Mines zone layouts 1663 | -10/Materials | Learned 4 Subcaves zone layouts 1706 | -10/Materials | Entered another Materials area 1706 | -9/Materials | Evolved 2 slots: Propulsion x1, Weapon x1 1898 | -9/Materials | Discovered new exit (range 13) 2146 | -9/Materials | Build established: Mutant 2477 | -9/Materials | Discovered new exit (range 5) 2744 | -9/Materials | Core integrity fell below 50% 2885 | -9/Materials | Discovered new exit (range 16) 3113 | -9/Materials | Discovered new exit (range 7) 3123 | -9/Materials | Build established: Gunner 3500 | -9/Materials | Discovered new exit (range 5) 3513 | -9/Materials | Learned location of 2 exits from Materials 3556 | -9/Materials | Learned 4 Recycling zone layouts 3591 | -9/Materials | Identified exit to Materials 3616 | -9/Materials | Learned Storage stockpile data 3630 | -9/Materials | Learned location of 1 exit from Storage 3632 | -9/Materials | Learned Storage stockpile data 3675 | -9/Materials | Entered another Materials area 3675 | -8/Materials | Evolved 2 slots: Utility x2 3676 | -8/Materials | Identified exit to Storage 3677 | -8/Materials | Identified exit to Factory 4006 | -8/Materials | Build established: Mutant 4810 | -8/Materials | Garrison activated, responded to threat 5073 | -8/Materials | Entered Storage 5074 | -8/Storage | Identified exit to Recycling 5236 | -8/Storage | Build established: Assassin 5460 | -8/Storage | Garrison activated, responded to threat 5572 | -8/Storage | Lost 3 parts (1p1n1w) 5899 | -8/Storage | Build established: Scavenger-Mutant 6053 | -8/Storage | Lost 3 parts (1p1u1w) 6066 | -8/Storage | Destroyed 7 combat bots 6874 | -8/Storage | Build established: Mutant 7073 | -8/Storage | First assault squad dispatched 7636 | -8/Storage | Met a pair of Derelict thieves 7637 | -8/Storage | Build established: Scavenger-Tank 7677 | -8/Storage | Core integrity fell below 50% 7704 | -8/Storage | Destroyed 7 combat bots 7982 | -8/Storage | Entered Factory 7982 | -7/Factory | Evolved 2 slots: Power x1, Utility x1 8005 | -7/Factory | Build established: Skirmisher 8365 | -7/Factory | Build established: Assassin 8422 | -7/Factory | Garrison activated, responded to threat 8790 | -7/Factory | System corruption reached 10% 8960 | -7/Factory | Discovered new exit (range 33) 9029 | -7/Factory | Lost 3 parts (2u1w) 9471 | -7/Factory | Identified exit to Factory 9574 | -7/Factory | Lost 6 parts (2p2n2w) 9620 | -7/Factory | Core integrity fell below 50% 9689 | -7/Factory | Lost 3 parts (1p1n1w) 9982 | -7/Factory | First assault squad dispatched 10132 | -7/Factory | Build established: Scavenger-Assassin 10255 | -7/Factory | Destroyed 8 combat bots 10410 | -7/Factory | Lost 6 parts (1p2n2u1w) 10849 | -7/Factory | Core integrity fell below 20% 10892 | -7/Factory | Lost 3 parts (2p1u) 11003 | -7/Factory | Discovered exit to Factory (range 5) 11059 | -7/Factory | Garrison activated, responded to threat 11077 | -7/Factory | Entered another Factory area 11077 | -6/Factory | Evolved 2 slots: Propulsion x1, Utility x1 11466 | -6/Factory | Lost 3 parts (1p2n) 12131 | -6/Factory | Discovered new exit (range 6) 12138 | -6/Factory | Identified exit to Factory 12379 | -6/Factory | Lost 6 parts (1p1n1u3w) 12909 | -6/Factory | Lost 3 parts (1p2u) 12973 | -6/Factory | Lost 3 parts (1p1u1w) 13374 | -6/Factory | Discovered exit to Factory (range 5) 13721 | -6/Factory | Core integrity fell below 50% 13733 | -6/Factory | Released all parts (9) 13739 | -6/Factory | Core integrity fell below 20% 13759 | -6/Factory | System corruption reached 10% 13759 | -6/Factory | Discovered new exit (range 5) 13767 | -6/Factory | Entered Extension 13770 | -6/Extension | Lost 8 parts (2p3n3w) 13819 | -6/Extension | Destroyed by Y-54 Guardian with Flak Gun Last Messages --------------- rejected. 13737_ Acquired Powered Hammer. 13739_ Powered Hammer destroyed. 13755_ System corrupted: Heat flow error (+146). 13758_ Triggered Shock Trap. 13758_ The floor emits a surge of raw power. 13758_ System corrupted (+1). 13758_ Triggered Shock Trap. 13758_ The floor emits a surge of raw power. 13758_ System corrupted (+2). 13759_ Connecting with Door Terminal... >>Open(Door) Sealed Blast Doors opened. 13759_ ALERT: Suspicious activity at Terminal F002. Dispatching Investigation squad. 13759_ EXIT=FOUND LOCATION=UNKNOWN GOAL=ESCAPE 13802_ System corrupted: Heat flow error (+212). 13815_ W-25 Informer sends out distress signal. Map ----- +----------------------------------------------------+ | | | | | | | | | | | | | | | | | | | | | | | | | | | | | | | | | ??????????????????????????????????????? | | ??????????????????????????????????????? | | ??????????????????????????????????????? | | ??????????????????????????????????????? | | ????????################## ??????????? | | ????????# w /Y[??????????? | | ????????# #????????????? | | ?????#### #????????????? | | ?????# #????????????? | | ?????# s @ #????????????? | | ?????# s s """"""" #????????????? | | ?????# ""T"" """"""????????????????? | | ?????# """"" ???????????????? | | ?????# ??????????????? | | ?????# ????????????? | | ?????# #####+#####+###?????????????? | | ?????# #???????????????????????????? | | ?????# #???????????????????????????? | | ?????# #???????????????????????????? | | ?????# #???????????????????????????? | | ?????# #???????????????????????????? | | ?????# #???????????????????????????? | | ?????# #???????????????????????????? | | ?????# #???????????????????????????? | | ?????# ####???????????????????????????? | | ?????# #??????????????????????????????? | | ?????# #??????????????????????????????? | | ?????# #??????????????????????????????? | | ?????# #??????????????????????????????? | | ?????# #??????????????????????????????? | | ?????# #??????????????????????????????? | | ?????# #??????????????????????????????? | | ?????# #??????????????????????????????? | | ?????# #??????????????????????????????? | +----------------------------------------------------+ Best States ------------- Heat Dissipation 70 Energy Generation 32 Energy Capacity 700 Matter Stores 300 Matter Capacity 300 Sight Range 16 Robot Scan Range 15 Terrain Scan Density 10 Armor Coverage 375 Core Shielding 30 Weapon Shielding 33 Weapon Cycling 15 Evasion (%) 55 Targeting Accuracy 8 Melee Accuracy 5 Recoil Reduction 3 Item Schematics ----------------- Huge Storage Unit | -8/Materials | Scanalyzed Rocket Launcher | -8/Materials | Scanalyzed Imp. Light Armor Plating | -8/Materials | Scanalyzed Robot Schematics ------------------ None Fabricated ------------ Nothing Repaired ---------- Nothing Alien Tech Used ----------------- None Achievements -------------- None Challenges ------------ None Game ------ Seed StasisProjectionCannon Manual? 0 Play Time 04:11:36 Cumulative 248.3 hours Start 2025.08.08 @ 18:13:52 End 2025.08.10 @ 18:29:33 Sessions 12 Manual Loads 0 Difficulty Rogue Special Mode None Game No. 119 Rogue 98 Adventurer 21 Explorer 0 Win Type - Total 12 Types 8/0/3/1/0/0/0/0/0/0 Lore% 46 Gallery% 65 Achievement% 61 Wizard Run 0 Options --------- Layout 2 ASCII 0 Keyboard 0 Movement Arrows Keybinds 0 Fullscreen 1 Font 16/SmallcapsGlow Map View 50x49 Zoom Use 4% Tactical HUD 1 Map Filters NONE Filters NONE Steam SD RUN: a6bf7b12-dfbd-4290-89b0-53d0b8150866